fUST/lending_fUST_20240819
["ID","MTS","AMOUNT","RATE_DAILY","PERIOD"]
[335230526,1723999844027,-150.0,0.00016438,2]
[335230527,1723999844036,-500.0,0.00016438,2]
[335230528,1723999844046,-500.0,0.00016438,2]
[335230529,1723999844055,-500.0,0.00016438,2]
[335230530,1723999844065,-817.88,0.00016438,2]
[335230531,1723999844074,-500.0,0.00016438,2]
[335230532,1723999844083,-501.6854391,0.00016438,2]
[335230533,1723999844092,-500.0,0.00016438,2]
[335230534,1723999844102,-500.0,0.00016438,2]
[335230535,1723999844112,-500.0,0.00016438,2]
[335230536,1723999844121,-500.0,0.00016438,2]
[335230537,1723999844131,-500.0,0.00016438,2]
[335230538,1723999844140,-500.0,0.00016438,2]
[335230539,1723999844150,-500.0,0.00016438,2]
[335230540,1723999844159,-500.0,0.00016438,2]
[335230541,1723999844169,-500.0,0.00016438,2]
[335230542,1723999844178,-500.0,0.00016438,2]
[335230543,1723999844187,-1288.38,0.00016438,2]
[335230544,1723999844196,-309.0108856,0.00016438,2]
[335230545,1723999844206,-500.0,0.00016438,2]
[335230546,1723999844217,-500.0,0.00016438,2]
[335230547,1723999844226,-500.0,0.00016438,2]
[335230549,1723999844236,-500.0,0.00016438,2]
[335230550,1723999844245,-612.12252098,0.00016438,2]
[335230552,1723999844254,-500.0,0.00016438,2]
[335230554,1723999844263,-571.39,0.00016438,2]
[335230555,1723999844273,-611.83015375,0.00016438,2]
[335230556,1723999844283,-648.34,0.00016438,2]
[335230557,1723999844295,-500.0,0.00016438,2]
[335230558,1723999844305,-500.0,0.00016438,2]
[335230559,1723999844314,-500.0,0.00016438,2]
[335230560,1723999844324,-500.0,0.00016438,2]
[335230561,1723999844333,-500.0,0.00016438,2]
[335230562,1723999844343,-500.0,0.00016438,2]
[335230563,1723999844352,-500.0,0.00016438,2]
[335230564,1723999844361,-500.0,0.00016438,2]
[335230565,1723999844370,-692.09,0.00016438,2]
[335230566,1723999844380,-500.0,0.00016438,2]
[335230567,1723999844390,-333.52572178,0.00016438,2]
[335230568,1723999844507,-766.69,0.00016438,2]
[335230569,1723999844517,-500.0,0.00016438,2]
[335230570,1723999844526,-500.0,0.00016438,2]
[335230571,1723999844535,-500.0,0.00016438,2]
[335230572,1723999844544,-500.0,0.00016438,2]
[335230573,1723999844554,-500.0,0.00016438,2]
[335230574,1723999844563,-500.0,0.00016438,2]
[335230575,1723999844572,-500.0,0.00016438,2]
[335230576,1723999844581,-500.0,0.00016438,2]
[335230577,1723999844591,-310.688403,0.00016438,2]
[335230578,1723999844600,-310.688403,0.00016438,2]
[335230579,1723999844610,-500.0,0.00016438,2]
[335230580,1723999844619,-509.54630625,0.00016438,2]
[335230581,1723999844628,-500.0,0.00016438,2]
[335230582,1723999844640,-500.0,0.00016438,2]
[335230583,1723999844650,-500.0,0.00016438,2]
[335230584,1723999844660,-1043.99,0.00016438,2]
[335230585,1723999844670,-500.0,0.00016438,2]
[335230586,1723999844679,-500.0,0.00016438,2]
[335230587,1723999844689,-310.688403,0.00016438,2]
[335230588,1723999844699,-500.0,0.00016438,2]
[335230589,1723999844709,-310.688403,0.00016438,2]
[335230590,1723999844719,-500.0,0.00016438,2]
[335230591,1723999844729,-417.33335301,0.00016438,2]
[335230592,1723999844738,-500.0,0.00016438,2]
[335230593,1723999844747,-500.0,0.00016438,2]
[335230594,1723999844757,-1016.59,0.00016438,2]
[335230595,1723999844766,-500.0,0.00016438,2]
[335230596,1723999844775,-500.0,0.00016438,2]
[335230597,1723999844785,-500.0,0.00016438,2]
[335230598,1723999844795,-594.0,0.00016438,2]
[335230599,1723999844804,-506.77248503,0.00016438,2]
[335230600,1723999844813,-500.0,0.00016438,2]
[335230601,1723999844822,-1013.64333,0.00016438,2]
[335230602,1723999844832,-1013.64333,0.00016438,2]
[335230603,1723999844841,-500.0,0.00016438,2]
[335230604,1723999844850,-500.0,0.00016438,2]
[335230605,1723999844859,-500.0,0.00016438,2]
[335230606,1723999844869,-500.0,0.00016438,2]
[335230607,1723999844878,-1461.634586,0.00016438,2]
[335230608,1723999844888,-1013.64333,0.00016438,2]
[335230609,1723999844896,-1461.634586,0.00016438,2]
[335230610,1723999844906,-1212.69,0.00016438,2]
[335230611,1723999844915,-1013.64333,0.00016438,2]
[335230612,1723999844924,-500.0,0.00016438,2]
[335230613,1723999844933,-506.40033661,0.00016438,2]
[335230614,1723999844943,-500.0,0.00016438,2]
[335230615,1723999844953,-500.0,0.00016438,2]
[335230616,1723999844963,-500.0,0.00016438,2]
[335230617,1723999844972,-500.0,0.00016438,2]
[335230618,1723999844982,-649.0,0.00016438,2]
[335230619,1723999844991,-1461.634586,0.00016438,2]
[335230620,1723999845000,-252.00719866,0.00016438,2]
[335230621,1723999845010,-1461.634586,0.00016438,2]
[335230622,1723999845019,-500.0,0.00016438,2]
[335230623,1723999845029,-500.0,0.00016438,2]
[335230624,1723999845039,-500.0,0.00016438,2]
[335230625,1723999845048,-1212.07,0.00016438,2]
[335230626,1723999845058,-500.0,0.00016438,2]
[335230627,1723999845067,-200.0,0.00016438,2]
[335230628,1723999845076,-634.97,0.00016438,2]
[335230629,1723999845085,-500.0,0.00016438,2]
[335230630,1723999845094,-502.85908508,0.00016438,2]
[335230631,1723999845103,-500.0,0.00016438,2]
[335230632,1723999845113,-329.41772764,0.00016438,2]
[335230633,1723999845122,-500.0,0.00016438,2]
[335230634,1723999845131,-500.0,0.00016438,2]
[335230635,1723999845140,-500.0,0.00016438,2]
[335230636,1723999845150,-500.0,0.00016438,2]
[335230637,1723999845160,-500.0,0.00016438,2]
[335230638,1723999845169,-500.0,0.00016438,2]
[335230639,1723999845179,-697.88,0.00016438,2]
[335230640,1723999845188,-151.0,0.00016438,2]
[335230641,1723999845198,-500.0,0.00016438,2]
[335230642,1723999845207,-180.156334,0.00016438,2]
[335230643,1723999845221,-512.40516125,0.00016438,2]
[335230644,1723999845231,-500.0,0.00016438,2]
[335230645,1723999845241,-500.0,0.00016438,2]
[335230646,1723999845250,-500.0,0.00016438,2]
[335230647,1723999845260,-513.26,0.00016438,2]
[335230648,1723999845269,-500.0,0.00016438,2]
[335230649,1723999845279,-682.7,0.00016438,2]
[335230650,1723999845289,-500.0,0.00016438,2]
[335230651,1723999845299,-500.0,0.00016438,2]
[335230652,1723999845311,-500.0,0.00016438,2]
[335230653,1723999845320,-500.0,0.00016438,2]
[335230654,1723999845330,-500.0,0.00016438,2]
[335230655,1723999845339,-500.0,0.00016438,2]
[335230656,1723999845348,-501.12137864,0.00016438,2]
[335230657,1723999845357,-4145.13,0.00016438,2]
[335230658,1723999845367,-500.0,0.00016438,2]
[335230659,1723999845376,-500.0,0.00016438,2]
[335230660,1723999845386,-510.71652448,0.00016438,2]
[335230661,1723999845395,-500.0,0.00016438,2]
[335230662,1723999845404,-500.0,0.00016438,2]
[335230663,1723999845413,-500.0,0.00016438,2]
[335230664,1723999845422,-500.0,0.00016438,2]
[335230665,1723999845432,-519.3786446,0.00016438,2]
[335230666,1723999845442,-697.63,0.00016438,2]
[335230667,1723999845451,-500.0,0.00016438,2]
[335230668,1723999845460,-500.0,0.00016438,2]
[335230669,1723999845470,-500.0,0.00016438,2]
[335230670,1723999845479,-500.0,0.00016438,2]
[335230671,1723999845488,-560.93,0.00016438,2]
[335230672,1723999845497,-659.26,0.00016438,2]
[335230673,1723999845507,-500.0,0.00016438,2]
[335230674,1723999845518,-500.0,0.00016438,2]
[335230675,1723999845528,-1174.98,0.00016438,2]
[335230676,1723999845537,-151.0,0.00016438,2]
[335230677,1723999845547,-151.0,0.00016438,2]
[335230678,1723999845557,-503.76485255,0.00016438,2]
[335230679,1723999845566,-418.11879524,0.00016438,2]
[335230680,1723999845576,-903.055524,0.00016438,2]
[335230681,1723999845586,-903.055524,0.00016438,2]
[335230682,1723999845596,-500.0,0.00016438,2]
[335230683,1723999845606,-500.0,0.00016438,2]
[335230684,1723999845616,-151.0,0.00016438,2]
[335230685,1723999845626,-151.0,0.00016438,2]
[335230686,1723999845635,-1847.89,0.00016438,2]
[335230687,1723999845644,-1303.51,0.00016438,2]
[335230688,1723999845653,-500.0,0.00016438,2]
[335230689,1723999845663,-500.0,0.00016438,2]
[335230690,1723999845672,-454.33912668,0.00016438,2]
[335230691,1723999845682,-903.055524,0.00016438,2]
[335230692,1723999845691,-500.0,0.00016438,2]
[335230693,1723999845701,-903.055524,0.00016438,2]
[335230694,1723999845712,-543.22,0.00016438,2]
[335230695,1723999845721,-1003.47,0.00016438,2]
[335230696,1723999845731,-500.0,0.00016438,2]
[335230697,1723999845741,-2689.38,0.00016438,2]
[335230698,1723999845751,-826.89,0.00016438,2]
[335230699,1723999845761,-500.0,0.00016438,2]
[335230700,1723999845770,-313.130358,0.00016438,2]
[335230701,1723999845780,-510.97364611,0.00016438,2]
[335230702,1723999845789,-313.130358,0.00016438,2]
[335230703,1723999845798,-1266.47,0.00016438,2]
[335230704,1723999845808,-500.0,0.00016438,2]
[335230705,1723999845817,-500.0,0.00016438,2]
[335230706,1723999845827,-500.0,0.00016438,2]
[335230707,1723999845837,-500.0,0.00016438,2]
[335230708,1723999845846,-313.130358,0.00016438,2]
[335230709,1723999845856,-313.130358,0.00016438,2]
[335230710,1723999845866,-500.0,0.00016438,2]
[335230711,1723999845877,-1777.184239,0.00016438,2]
[335230712,1723999845887,-500.0,0.00016438,2]
[335230713,1723999845897,-1777.184239,0.00016438,2]
[335230714,1723999845907,-500.0,0.00016438,2]
[335230715,1723999845917,-500.0,0.00016438,2]
[335230716,1723999845926,-500.0,0.00016438,2]
[335230717,1723999845935,-500.0,0.00016438,2]
[335230718,1723999845945,-500.0,0.00016438,2]
[335230719,1723999845956,-1080.316087,0.00016438,2]
[335230720,1723999845966,-500.0,0.00016438,2]
[335230721,1723999845976,-1777.184239,0.00016438,2]
[335230722,1723999845986,-1080.316087,0.00016438,2]
[335230723,1723999845997,-1777.184239,0.00016438,2]
[335230724,1723999846008,-825.99,0.00016438,2]
[335230725,1723999846019,-500.0,0.00016438,2]
[335230726,1723999846029,-500.0,0.00016438,2]
[335230727,1723999846040,-500.0,0.00016438,2]
[335230728,1723999846051,-500.0,0.00016438,2]
[335230729,1723999846061,-1080.316087,0.00016438,2]
[335230730,1723999846072,-1080.316087,0.00016438,2]
[335230731,1723999846080,-501.7969771,0.00016438,2]
[335230732,1723999846090,-500.0,0.00016438,2]
[335230733,1723999846101,-500.0,0.00016438,2]
[335230734,1723999846113,-500.0,0.00016438,2]
[335230735,1723999846124,-500.0,0.00016438,2]
[335230736,1723999846134,-500.0,0.00016438,2]
[335230737,1723999846145,-500.0,0.00016438,2]
[335230738,1723999846155,-506.59060356,0.00016438,2]
[335230739,1723999846165,-500.0,0.00016438,2]
[335230740,1723999846176,-503.19594722,0.00016438,2]
[335230741,1723999846186,-500.0,0.00016438,2]
[335230742,1723999846197,-500.0,0.00016438,2]
[335230743,1723999846208,-573.99,0.00016438,2]
[335230744,1723999846223,-1100.84,0.00016438,2]
[335230745,1723999846232,-512.01,0.00016438,2]
[335230746,1723999846242,-846.72,0.00016438,2]
[335230747,1723999846251,-601.46,0.00016438,2]
[335230748,1723999846261,-500.0,0.00016438,2]
[335230749,1723999846271,-7055.48,0.00016438,2]
[335230750,1723999846282,-580.3,0.00016438,2]
[335230751,1723999846292,-500.0,0.00016438,2]
[335230752,1723999846302,-500.0,0.00016438,2]
[335230753,1723999846312,-1457.872465,0.00016438,2]
[335230754,1723999846321,-1457.872465,0.00016438,2]
[335230756,1723999846331,-500.0,0.00016438,2]
[335230758,1723999846341,-500.0,0.00016438,2]
[335230759,1723999846351,-500.0,0.00016438,2]
[335230760,1723999846361,-1110.84365,0.00016438,2]
[335230761,1723999846370,-638.39,0.00016438,2]
[335230762,1723999846380,-1110.84365,0.00016438,2]
[335230763,1723999846390,-500.0,0.00016438,2]
[335230764,1723999846400,-1457.872465,0.00016438,2]
[335230765,1723999846409,-1457.872465,0.00016438,2]
[335230766,1723999846419,-212.899685,0.00016438,2]
[335230767,1723999846429,-1634.67430316,0.00016438,2]
[335230772,1723999847092,-136.52569684,0.00016438,2]
[335230773,1723999847102,-212.899685,0.00016438,2]
[335230774,1723999847111,-1090.36,0.00016438,2]
[335230775,1723999847121,-1110.84365,0.00016438,2]
[335230776,1723999847131,-1110.84365,0.00016438,2]
[335230777,1723999847140,-500.0,0.00016438,2]
[335230778,1723999847150,-500.0,0.00016438,2]
[335230779,1723999847159,-212.899685,0.00016438,2]
[335230780,1723999847168,-558.25,0.00016438,2]
[335230781,1723999847178,-212.899685,0.00016438,2]
[335230782,1723999847187,-511.45949116,0.00016438,2]
[335230783,1723999847198,-500.0,0.00016438,2]
[335230784,1723999847207,-500.0,0.00016438,2]
[335230785,1723999847220,-500.0,0.00016438,2]
[335230786,1723999847230,-500.0,0.00016438,2]
[335230787,1723999847240,-500.0,0.00016438,2]
[335230788,1723999847249,-500.0,0.00016438,2]
[335230789,1723999847265,-988.99,0.00016438,2]
[335230790,1723999847275,-500.0,0.00016438,2]
[335230791,1723999847284,-1019.02,0.00016438,2]
[335230792,1723999847295,-500.0,0.00016438,2]
[335230793,1723999847305,-500.0,0.00016438,2]
[335230794,1723999847316,-557.75,0.00016438,2]
[335230795,1723999847325,-500.0,0.00016438,2]
[335230796,1723999847337,-1180.26,0.00016438,2]
[335230797,1723999847347,-500.0,0.00016438,2]
[335230798,1723999847356,-651.65,0.00016438,2]
[335230799,1723999847366,-505.04959204,0.00016438,2]
[335230800,1723999847375,-642.76,0.00016438,2]
[335230801,1723999847384,-500.0,0.00016438,2]
[335230802,1723999847394,-500.0,0.00016438,2]
[335230803,1723999847403,-500.0,0.00016438,2]
[335230804,1723999847413,-166.30995301,0.00016438,2]
[335230805,1723999847422,-2766.47,0.00016438,2]
[335230806,1723999847432,-500.0,0.00016438,2]
[335230807,1723999847441,-500.0,0.00016438,2]
[335230808,1723999847451,-500.0,0.00016438,2]
[335230809,1723999847462,-500.0,0.00016438,2]
[335230810,1723999847472,-500.0,0.00016438,2]
[335230811,1723999847481,-500.0,0.00016438,2]
[335230812,1723999847491,-500.0,0.00016438,2]
[335230813,1723999847500,-771.58,0.00016438,2]
[335230814,1723999847510,-500.0,0.00016438,2]
[335230815,1723999847519,-176.54166982,0.00016438,2]
[335230816,1723999847529,-500.0,0.00016438,2]
[335230817,1723999847539,-500.0,0.00016438,2]
[335230818,1723999847548,-837.87,0.00016438,2]
[335230819,1723999847558,-500.0,0.00016438,2]
[335230820,1723999847568,-798.58,0.00016438,2]
[335230821,1723999847578,-378.731163,0.00016438,2]
[335230822,1723999847587,-378.731163,0.00016438,2]
[335230823,1723999847597,-500.0,0.00016438,2]
[335230824,1723999847606,-500.0,0.00016438,2]
[335230825,1723999847616,-500.0,0.00016438,2]
[335230826,1723999847625,-378.731163,0.00016438,2]
[335230827,1723999847635,-500.0,0.00016438,2]
[335230828,1723999847644,-378.731163,0.00016438,2]
[335230829,1723999847654,-500.0,0.00016438,2]
[335230830,1723999847664,-151.0,0.00016438,2]
[335230831,1723999847674,-151.0,0.00016438,2]
[335230832,1723999847683,-699.72,0.00016438,2]
[335230833,1723999847693,-500.0,0.00016438,2]
[335230834,1723999847702,-500.0,0.00016438,2]
[335230835,1723999847714,-500.0,0.00016438,2]
[335230836,1723999847724,-500.0,0.00016438,2]
[335230837,1723999847734,-500.0,0.00016438,2]
[335230838,1723999847744,-495.78922425,0.00016438,2]
[335230839,1723999847754,-500.0,0.00016438,2]
[335230840,1723999847764,-919.11,0.00016438,2]
[335230841,1723999847775,-500.0,0.00016438,2]
[335230842,1723999847786,-500.0,0.00016438,2]
[335230843,1723999847795,-500.0,0.00016438,2]
[335230844,1723999847806,-500.0,0.00016438,2]
[335230845,1723999847817,-151.0,0.00016438,2]
[335230846,1723999847827,-500.0,0.00016438,2]
[335230847,1723999847837,-500.0,0.00016438,2]
[335230848,1723999847846,-151.0,0.00016438,2]
[335230849,1723999847855,-500.0,0.00016438,2]
[335230850,1723999847865,-500.0,0.00016438,2]
[335230851,1723999847875,-500.0,0.00016438,2]
[335230852,1723999847884,-515.79324204,0.00016438,2]
[335230853,1723999847894,-500.0,0.00016438,2]
[335230854,1723999847903,-500.0,0.00016438,2]
[335230855,1723999847913,-500.0,0.00016438,2]
[335230856,1723999847923,-500.0,0.00016438,2]
[335230857,1723999847932,-379.23394776,0.00016438,2]
[335230858,1723999847943,-482.46625134,0.00016438,2]
[335230859,1723999847952,-880.39,0.00016438,2]
[335230860,1723999847962,-1021.12,0.00016438,2]
[335230861,1723999847971,-1068.78,0.00016438,2]
[335230862,1723999847980,-1990.91,0.00016438,2]
[335230863,1723999847990,-500.0,0.00016438,2]
[335230864,1723999848000,-677.44,0.00016438,2]
[335230865,1723999848010,-500.0,0.00016438,2]
[335230866,1723999848021,-312.606967,0.00016438,2]
[335230867,1723999848031,-312.606967,0.00016438,2]
[335230868,1723999848040,-555.559142,0.00016438,2]
[335230869,1723999848050,-555.559142,0.00016438,2]
[335230870,1723999848061,-363.00851937,0.00016438,2]
[335230871,1723999848071,-503.20256977,0.00016438,2]
[335230872,1723999848082,-500.0,0.00016438,2]
[335230873,1723999848091,-312.606967,0.00016438,2]
[335230874,1723999848101,-542.23948546,0.00016438,2]
[335230875,1723999848111,-829.06,0.00016438,2]
[335230876,1723999848121,-312.606967,0.00016438,2]
[335230877,1723999848131,-555.559142,0.00016438,2]
[335230878,1723999848141,-500.0,0.00016438,2]
[335230879,1723999848151,-555.559142,0.00016438,2]
[335230880,1723999848160,-854.51,0.00016438,2]
[335230881,1723999848169,-500.0,0.00016438,2]
[335230882,1723999848180,-500.0,0.00016438,2]
[335230883,1723999848189,-2133.23,0.00016438,2]
[335230884,1723999848199,-500.0,0.00016438,2]
[335230885,1723999848209,-171.40676647,0.00016438,2]
[335230886,1723999848222,-954.92,0.00016438,2]
[335230887,1723999848231,-500.0,0.00016438,2]
[335230888,1723999848241,-500.0,0.00016438,2]
[335230889,1723999848250,-151.0,0.00016438,2]
[335230890,1723999848262,-151.0,0.00016438,2]
[335230891,1723999848271,-500.0,0.00016438,2]
[335230892,1723999848282,-500.0,0.00016438,2]
[335230893,1723999848294,-500.0,0.00016438,2]
[335230894,1723999848304,-500.0,0.00016438,2]
[335230895,1723999848314,-854.52,0.00016438,2]
[335230896,1723999848324,-513.78946018,0.00016438,2]
[335230897,1723999848334,-500.0,0.00016438,2]
[335230898,1723999848344,-500.0,0.00016438,2]
[335230899,1723999848355,-750.43,0.00016438,2]
[335230900,1723999848365,-500.0,0.00016438,2]
[335230901,1723999848376,-506.70627482,0.00016438,2]
[335230902,1723999848385,-6641.59,0.00016438,2]
[335230903,1723999848395,-6641.59,0.00016438,2]
[335230904,1723999848519,-6641.59,0.00016438,2]
[335230905,1723999848530,-500.0,0.00016438,2]
[335230906,1723999848539,-6641.59,0.00016438,2]
[335230907,1723999848549,-500.0,0.00016438,2]
[335230908,1723999848558,-6641.59,0.00016438,2]
[335230909,1723999848568,-500.0,0.00016438,2]
[335230910,1723999848577,-6641.59,0.00016438,2]
[335230911,1723999848587,-6641.59,0.00016438,2]
[335230912,1723999848597,-6641.59,0.00016438,2]
[335230913,1723999848606,-6641.59,0.00016438,2]
[335230914,1723999848616,-6641.59,0.00016438,2]
[335230915,1723999848625,-6641.59,0.00016438,2]
[335230916,1723999848635,-6641.59,0.00016438,2]
[335230917,1723999848645,-6641.59,0.00016438,2]
[335230918,1723999848654,-6641.59,0.00016438,2]
[335230919,1723999848664,-6641.59,0.00016438,2]
[335230920,1723999848674,-6641.59,0.00016438,2]
[335230921,1723999848684,-6641.59,0.00016438,2]
[335230922,1723999848694,-6641.59,0.00016438,2]
[335230923,1723999848704,-6641.59,0.00016438,2]
[335230924,1723999848714,-672.81,0.00016438,2]
[335230925,1723999848724,-6641.59,0.00016438,2]
[335230926,1723999848733,-500.0,0.00016438,2]
[335230927,1723999848743,-6641.59,0.00016438,2]
[335230928,1723999848752,-151.0,0.00016438,2]
[335230929,1723999848762,-500.0,0.00016438,2]
[335230930,1723999848772,-6641.59,0.00016438,2]
[335230931,1723999848781,-151.0,0.00016438,2]
[335230932,1723999848791,-6641.59,0.00016438,2]
[335230933,1723999848800,-6641.65206443,0.00016438,2]
[335230934,1723999848810,-944.712646,0.00016438,2]
[335230935,1723999848820,-944.712646,0.00016438,2]
[335230936,1723999848830,-153.0,0.000165,2]
[335230937,1723999848840,-153.0,0.000165,2]
[335230938,1723999848849,-153.0,0.000165,2]
[335230939,1723999848858,-532.89220378,0.000165,2]
[335230940,1723999848868,-150.0,0.00016546,2]
[335230941,1723999848877,-1000.0,0.00016551,2]
[335230942,1723999848887,-5188.49053978,0.00016657,2]
[335230943,1723999848897,-1000.0,0.00016685,2]
[335230944,1723999848907,-150.112236,0.000167,2]
[335230945,1723999848916,-150.112233,0.000167,2]
[335230946,1723999848926,-151.0,0.00016702,2]
[335230947,1723999848935,-151.0,0.00016702,2]
[335230948,1723999848944,-150.01,0.00016711,2]
[335230949,1723999848954,-3246.18840817,0.00016711,2]
[335230950,1723999848964,-151.0,0.00016711,2]
[335230951,1723999848974,-151.0,0.00016711,2]
[335230952,1723999848984,-151.0,0.00016711,2]
[335230953,1723999848994,-151.682741,0.00016711,2]
[335230954,1723999849004,-151.0,0.00016711,2]
[335230955,1723999849013,-151.0,0.00016711,2]
[335230956,1723999849023,-151.0,0.00016711,2]
[335230957,1723999849032,-151.0,0.00016711,2]
[335230958,1723999849042,-211.739216,0.00016711,2]
[335230959,1723999849053,-509.52729507,0.00016712,2]
[335230960,1723999849062,-151.0,0.00016712,2]
[335230961,1723999849071,-522.51656014,0.00016712,2]
[335230962,1723999849081,-508.31419883,0.00016712,2]
[335230963,1723999849090,-500.0,0.00016712,2]
[335230964,1723999849100,-500.0,0.00016712,2]
[335230965,1723999849111,-500.0,0.00016712,2]
[335230966,1723999849120,-500.0,0.00016712,2]
[335230967,1723999849129,-502.63474682,0.00016712,2]
[335230968,1723999849139,-500.0,0.00016712,2]
[335230969,1723999849148,-500.0,0.00016712,2]
[335230970,1723999849158,-691.23,0.00016712,2]
[335230971,1723999849167,-500.0,0.00016712,2]
[335230972,1723999849176,-500.0,0.00016712,2]
[335230973,1723999849186,-500.0,0.00016712,2]
[335230974,1723999849196,-151.93627,0.00016712,2]
[335230975,1723999849207,-500.0,0.00016712,2]
[335230976,1723999849220,-500.0,0.00016712,2]
[335230977,1723999849230,-518.94139326,0.00016712,2]
[335230978,1723999849240,-504.35897481,0.00016712,2]
[335230979,1723999849250,-594.7,0.00016712,2]
[335230980,1723999849259,-510.80240199,0.00016712,2]
[335230981,1723999849269,-500.0,0.00016712,2]
[335230982,1723999849279,-500.0,0.00016712,2]
[335230983,1723999849288,-500.0,0.00016712,2]
[335230984,1723999849299,-500.0,0.00016712,2]
[335230985,1723999849308,-151.0,0.00016712,2]
[335230986,1723999849318,-151.0,0.00016712,2]
[335230987,1723999849327,-500.0,0.00016712,2]
[335230988,1723999849337,-500.0,0.00016712,2]
[335230989,1723999849347,-505.61470572,0.00016712,2]
[335230990,1723999849356,-505.91791522,0.00016712,2]
[335230991,1723999849365,-500.0,0.00016712,2]
[335230992,1723999849374,-500.0,0.00016712,2]
[335230993,1723999849384,-500.0,0.00016712,2]
[335230994,1723999849393,-500.0,0.00016712,2]
[335230995,1723999849402,-500.0,0.00016712,2]
[335230996,1723999849412,-500.0,0.00016712,2]
[335230997,1723999849421,-500.0,0.00016712,2]
[335230998,1723999849431,-500.0,0.00016712,2]
[335230999,1723999849441,-500.0,0.00016712,2]
[335231000,1723999849451,-511.27237691,0.00016712,2]
[335231001,1723999849463,-594.6,0.00016712,2]
[335231002,1723999849478,-500.0,0.00016712,2]
[335231003,1723999849488,-500.0,0.00016712,2]
[335231004,1723999849499,-505.6636181,0.00016712,2]
[335231005,1723999849508,-509.1367831,0.00016712,2]
[335231006,1723999849518,-506.50095845,0.00016712,2]
[335231007,1723999849527,-500.0,0.00016712,2]
[335231008,1723999849537,-500.0,0.00016712,2]
[335231009,1723999849547,-500.0,0.00016712,2]
[335231010,1723999849558,-500.0,0.00016712,2]
[335231011,1723999849568,-597.15331556,0.00016712,2]
[335231012,1723999849577,-501.88739602,0.00016712,2]
[335231013,1723999849587,-504.26190343,0.00016712,2]
[335231014,1723999849597,-210.85225262,0.00016712,2]
[335231015,1723999849607,-500.0,0.00016712,2]
[335231016,1723999849617,-500.0,0.00016712,2]
[335231017,1723999849626,-500.0,0.00016712,2]
[335231018,1723999849636,-500.0,0.00016712,2]
[335231019,1723999849646,-500.0,0.00016712,2]
[335231020,1723999849655,-500.0,0.00016712,2]
[335231021,1723999849666,-608.88,0.00016712,2]
[335231022,1723999849675,-500.0,0.00016712,2]
[335231023,1723999849685,-500.0,0.00016712,2]
[335231024,1723999849694,-500.0,0.00016712,2]
[335231025,1723999849704,-500.0,0.00016712,2]
[335231026,1723999849715,-505.06143816,0.00016712,2]
[335231027,1723999849725,-500.0,0.00016712,2]
[335231028,1723999849735,-372.84039131,0.00016712,2]
[335231029,1723999849745,-500.0,0.00016712,2]
[335231030,1723999849755,-500.0,0.00016712,2]
[335231031,1723999849765,-751.19,0.00016712,2]
[335231032,1723999849776,-500.0,0.00016712,2]
[335231033,1723999849787,-500.0,0.00016712,2]
[335231034,1723999849796,-152.497139,0.00016712,2]